fUSD/lending_fUSD_20250207
["ID","MTS","AMOUNT","RATE_DAILY","PERIOD"]
[352048103,1738900235974,-500.0,0.00017123,2]
[352048104,1738900235984,-500.0,0.00017123,2]
[352048105,1738900235993,-500.0,0.00017123,2]
[352048106,1738900236003,-500.0,0.00017123,2]
[352048107,1738900236016,-500.0,0.00017123,2]
[352048108,1738900236025,-640.08244752,0.00017123,2]
[352048109,1738900236035,-500.0,0.00017123,2]
[352048110,1738900236044,-500.0,0.00017123,2]
[352048111,1738900236054,-500.0,0.00017123,2]
[352048112,1738900236063,-500.0,0.00017123,2]
[352048113,1738900236072,-620.56581458,0.00017123,2]
[352048114,1738900236082,-500.0,0.00017123,2]
[352048115,1738900236091,-479.98658862,0.00017123,2]
[352048116,1738900236101,-500.0,0.00017123,2]
[352048117,1738900236110,-500.0,0.00017123,2]
[352048118,1738900236119,-500.0,0.00017123,2]
[352048119,1738900236128,-500.0,0.00017123,2]
[352048120,1738900236138,-500.0,0.00017123,2]
[352048121,1738900236148,-500.0,0.00017123,2]
[352048122,1738900236157,-500.0,0.00017123,2]
[352048123,1738900236167,-500.0,0.00017123,2]
[352048124,1738900236177,-500.0,0.00017123,2]
[352048125,1738900236186,-292.42269935,0.00017123,2]
[352048126,1738900236196,-500.0,0.0001726,2]
[352048127,1738900236205,-500.0,0.0001726,2]
[352048128,1738900236215,-500.0,0.0001726,2]
[352048129,1738900236224,-329.45675306,0.0001726,2]
[352048130,1738900236233,-2641.56,0.0001726,2]
[352048131,1738900236243,-500.0,0.0001726,2]
[352048132,1738900236252,-500.0,0.0001726,2]
[352048133,1738900236261,-500.0,0.0001726,2]
[352048134,1738900236271,-238.51407051,0.0001726,2]
[352048135,1738900236280,-643.05474918,0.0001726,2]
[352048136,1738900236289,-500.0,0.0001726,2]
[352048137,1738900236299,-500.0,0.0001726,2]
[352048138,1738900236308,-500.0,0.0001726,2]
[352048139,1738900236318,-500.0,0.0001726,2]
[352048140,1738900236327,-500.0,0.0001726,2]
[352048141,1738900236337,-500.0,0.0001726,2]
[352048142,1738900236346,-500.0,0.0001726,2]
[352048143,1738900236356,-500.0,0.0001726,2]
[352048144,1738900236365,-500.0,0.0001726,2]
[352048145,1738900236375,-500.0,0.0001726,2]
[352048146,1738900236384,-500.0,0.0001726,2]
[352048147,1738900236394,-588.44140195,0.0001726,2]
[352048148,1738900236403,-500.0,0.0001726,2]
[352048149,1738900236413,-500.0,0.0001726,2]
[352048150,1738900236422,-500.0,0.0001726,2]
[352048151,1738900236432,-353.55455606,0.0001726,2]
[352048152,1738900236441,-500.0,0.0001726,2]
[352048153,1738900236454,-12904.26001943,0.0001732,2]
[352048154,1738900236464,-384.51,0.0001734,2]
[352048155,1738900236474,-877.86,0.0001734,2]
[352048156,1738900236483,-469.96981896,0.00017397,2]
[352048157,1738900236493,-500.0,0.00017397,2]
[352048158,1738900236503,-500.0,0.00017397,2]
[352048159,1738900236512,-2641.56,0.00017397,2]
[352048160,1738900236522,-500.0,0.00017397,2]
[352048161,1738900236532,-536.65201316,0.00017397,2]
[352048162,1738900236542,-334.64260771,0.00017397,2]
[352048163,1738900236551,-500.0,0.00017397,2]
[352048164,1738900236560,-500.0,0.00017397,2]
[352048165,1738900236570,-500.0,0.00017397,2]
[352048166,1738900236579,-500.0,0.00017397,2]
[352048167,1738900236589,-500.0,0.00017397,2]
[352048168,1738900236598,-500.0,0.00017397,2]
[352048169,1738900236607,-500.0,0.00017397,2]
[352048170,1738900236617,-500.0,0.00017397,2]
[352048171,1738900236626,-500.0,0.00017397,2]
[352048172,1738900236636,-500.0,0.00017397,2]
[352048173,1738900236645,-285.07231017,0.00017397,2]
[352048174,1738900236655,-553.97860731,0.00017397,2]
[352048175,1738900236665,-601.55959462,0.00017397,2]
[352048176,1738900236674,-500.0,0.00017397,2]
[352048177,1738900236684,-500.0,0.00017397,2]
[352048178,1738900236694,-500.0,0.00017421,2]
[352048179,1738900236703,-167.25,0.00017437,2]
[352048180,1738900236713,-852.72437812,0.00017493,2]
[352048181,1738900236722,-235.40467505,0.00017534,2]
[352048182,1738900236732,-500.0,0.00017534,2]
[352048183,1738900236742,-2641.56,0.00017534,2]
[352048184,1738900236752,-500.0,0.00017534,2]
[352048185,1738900236761,-500.0,0.00017534,2]
[352048186,1738900236771,-500.0,0.00017534,2]
[352048187,1738900236781,-284.61737279,0.00017534,2]
[352048188,1738900236790,-500.0,0.00017534,2]
[352048189,1738900236799,-500.0,0.00017534,2]
[352048190,1738900236808,-500.0,0.00017534,2]
[352048191,1738900236818,-500.0,0.00017534,2]
[352048192,1738900236828,-500.0,0.00017534,2]
[352048193,1738900236842,-500.0,0.00017534,2]
[352048194,1738900236851,-500.0,0.00017534,2]
[352048195,1738900236860,-500.0,0.00017534,2]
[352048196,1738900236869,-500.0,0.00017534,2]
[352048197,1738900236879,-500.0,0.00017604,2]
[352048198,1738900236889,-12904.26001943,0.00017606,2]
[352048199,1738900236898,-503.0,0.00017616,2]
[352048200,1738900236907,-602.65756631,0.00017671,2]
[352048201,1738900236916,-2641.56,0.00017671,2]
[352048202,1738900236926,-500.0,0.00017671,2]
[352048203,1738900236935,-500.0,0.00017671,2]
[352048204,1738900236946,-500.0,0.00017671,2]
[352048205,1738900236958,-612.6318,0.00017671,2]
[352048206,1738900236967,-208.30650177,0.00017671,2]
[352048207,1738900236977,-500.0,0.00017671,2]
[352048208,1738900236986,-500.0,0.00017671,2]
[352048209,1738900236996,-323.19778503,0.00017671,2]
[352048210,1738900237011,-500.0,0.00017671,2]
[352048211,1738900237022,-506.8807002,0.00017671,2]
[352048212,1738900237033,-500.0,0.00017671,2]
[352048213,1738900237042,-500.0,0.00017671,2]
[352048214,1738900237053,-421.3557999,0.00017707,2]
[352048215,1738900237064,-156.31,0.00017753,2]
[352048216,1738900237074,-438.66,0.00017753,2]
[352048217,1738900237085,-224.15,0.00017753,2]
[352048218,1738900237096,-150.0,0.00017753,2]
[352048219,1738900237105,-438.66,0.00017753,2]
[352048220,1738900237115,-150.0,0.00017753,2]
[352048221,1738900237127,-150.0,0.00017753,2]
[352048222,1738900237136,-150.0,0.00017753,2]
[352048223,1738900237146,-150.0,0.00017753,2]
[352048224,1738900237155,-438.66,0.00017753,2]
[352048225,1738900237164,-150.0,0.00017753,2]
[352048226,1738900237173,-438.66,0.00017753,2]
[352048227,1738900237182,-150.0,0.00017753,2]
[352048228,1738900237191,-150.0,0.00017753,2]
[352048229,1738900237201,-150.0,0.00017753,2]
[352048230,1738900237211,-150.0,0.00017753,2]
[352048231,1738900237220,-150.0,0.00017753,2]
[352048232,1738900237231,-422.68,0.00017753,2]
[352048233,1738900237242,-150.0,0.00017753,2]
[352048234,1738900237253,-150.0,0.00017753,2]
[352048235,1738900237263,-150.0,0.00017753,2]
[352048236,1738900237272,-150.0,0.00017753,2]
[352048237,1738900237282,-150.0,0.00017753,2]
[352048238,1738900237292,-150.0,0.00017753,2]
[352048239,1738900237301,-150.0,0.00017753,2]
[352048240,1738900237310,-150.0,0.00017753,2]
[352048241,1738900237320,-150.0,0.00017753,2]
[352048242,1738900237330,-999.0,0.00017806,2]
[352048243,1738900237340,-2457.0,0.00017807,2]
[352048244,1738900237350,-2641.56,0.00017808,2]
[352048245,1738900237360,-500.0,0.00017808,2]
[352048246,1738900237369,-500.0,0.00017808,2]
[352048247,1738900237379,-372.0017024,0.00017808,2]
[352048248,1738900237388,-500.0,0.00017808,2]
[352048249,1738900237398,-500.0,0.00017808,2]
[352048250,1738900237407,-500.0,0.00017808,2]
[352048251,1738900237417,-500.0,0.00017808,2]
[352048253,1738900237426,-500.0,0.00017808,2]
[352048254,1738900237435,-500.0,0.00017856,2]
[352048255,1738900237445,-150.0,0.0001786,2]
[352048256,1738900237454,-12904.26001943,0.00017892,2]
[352048257,1738900237463,-2500.0,0.000179,3]
[352048258,1738900237473,-564.81,0.00017905,2]
[352048260,1738900237487,-2641.56,0.00017945,2]
[352048262,1738900237496,-500.0,0.00017945,2]
[352048263,1738900237506,-500.0,0.00017945,2]
[352048264,1738900237515,-500.0,0.00017945,2]
[352048266,1738900237524,-500.0,0.00017945,2]
[352048267,1738900237534,-500.0,0.00017945,2]
[352048268,1738900237543,-500.0,0.00017945,2]
[352048269,1738900237553,-500.0,0.00017945,2]
[352048270,1738900237562,-10000.0,0.00018,7]
[352048271,1738900237572,-152.0,0.00018052,3]
[352048272,1738900237582,-2641.56,0.00018082,2]
[352048273,1738900237591,-500.0,0.00018082,2]
[352048274,1738900237602,-332.07570341,0.00018082,2]
[352048275,1738900237611,-500.0,0.00018082,2]
[352048276,1738900237621,-500.0,0.00018082,2]
[352048277,1738900237631,-500.0,0.00018082,2]
[352048278,1738900237641,-322.64790642,0.00018082,2]
[352048279,1738900237650,-500.0,0.00018082,2]
[352048280,1738900237660,-200.0,0.00018082,2]
[352048281,1738900237671,-828.57,0.00018082,2]
[352048282,1738900237680,-12904.26001943,0.00018177,2]
[352048283,1738900237690,-2641.56,0.00018219,2]
[352048284,1738900237700,-500.0,0.00018219,2]
[352048285,1738900237711,-500.0,0.00018219,2]
[352048286,1738900237720,-612.6870051,0.00018219,2]
[352048287,1738900237731,-500.0,0.00018219,2]
[352048288,1738900237740,-500.0,0.00018219,2]
[352048289,1738900237750,-3119.02,0.000183,2]
[352048290,1738900237760,-2641.56,0.00018356,2]
[352048291,1738900237770,-500.0,0.00018356,2]
[352048292,1738900237779,-292.53742372,0.00018356,2]
[352048293,1738900237788,-500.0,0.00018356,2]
[352048294,1738900237798,-500.0,0.00018356,2]
[352048295,1738900237808,-1000.0,0.00018394,2]
[352048296,1738900237817,-1000.0,0.00018394,2]
[352048297,1738900237827,-1000.0,0.00018394,2]
[352048298,1738900237837,-1000.0,0.00018394,2]
[352048299,1738900237847,-1000.0,0.00018394,2]
[352048300,1738900237858,-1000.0,0.00018394,2]
[352048301,1738900237869,-1000.0,0.00018394,2]
[352048302,1738900237879,-1000.0,0.00018394,2]
[352048303,1738900237890,-1000.0,0.00018394,2]
[352048304,1738900237901,-1000.0,0.00018394,2]
[352048305,1738900237912,-730.3798046,0.00018404,2]
[352048306,1738900237922,-12904.26001943,0.00018463,2]
[352048307,1738900237933,-2641.56,0.00018493,2]
[352048308,1738900237942,-530.24359226,0.00018493,2]
[352048309,1738900237952,-500.0,0.00018493,2]
[352048310,1738900237961,-575.28985828,0.00018493,2]
[352048312,1738900237972,-500.0,0.00018517,2]
[352048314,1738900237981,-500.0,0.00018517,2]
[352048315,1738900237991,-500.0,0.00018517,2]
[352048316,1738900238000,-173.35091462,0.00018517,2]
[352048317,1738900238012,-423.62465617,0.00018517,2]
[352048318,1738900238022,-154.71,0.000186,2]
[352048319,1738900238031,-1000.0,0.0001863,2]
[352048320,1738900238041,-2641.56,0.0001863,2]
[352048321,1738900238051,-500.0,0.0001863,2]
[352048322,1738900238060,-2111.2260351,0.00018659,2]
[352048323,1738900238070,-500.0,0.000187,2]
[352048324,1738900238080,-500.0,0.000187,2]
[352048325,1738900238090,-324.08939511,0.00018733,2]
[352048326,1738900238099,-570.75,0.00018735,2]
[352048327,1738900238109,-439.5,0.0001874,2]
[352048328,1738900238118,-12904.26001943,0.00018749,2]
[352048329,1738900238127,-828.57,0.00018751,2]
[352048330,1738900238138,-2641.56,0.00018767,2]
[352048331,1738900238147,-353.44794675,0.00018767,2]
[352048332,1738900238156,-2500.0,0.000188,3]
[352048333,1738900238165,-500.0,0.000188,6]
[352048334,1738900238174,-525.15,0.00018866,2]
[352048335,1738900238183,-570.75,0.00018872,2]
[352048336,1738900238192,-500.31172415,0.00018873,2]
[352048337,1738900238201,-82846.61278179,0.000189,7]
[352048338,1738900238210,-164.95426672,0.000189,2]
[352048339,1738900238219,-500.0,0.000189,6]
[352048340,1738900238229,-1906.0,0.000189,2]
[352048341,1738900238237,-6304.89375557,0.000189,2]
[352048342,1738900238336,-29999.92,0.000189,2]
[352048343,1738900238347,-1255.69190624,0.000189,2]
[352048344,1738900238365,-1016.00119555,0.000189,2]
[352048345,1738900238376,-6872.49314264,0.000189,2]
[352048346,1738900238386,-2641.56,0.00018904,2]
[352048347,1738900238396,-1200.0,0.00018904,5]
[352048348,1738900238405,-1200.0,0.00018904,5]
[352048349,1738900238549,-1200.0,0.00018904,5]
[352048350,1738900238559,-516.67749273,0.00018904,5]
[352048351,1738900238568,-151.602073,0.00018912,2]
[352048352,1738900238577,-150.0,0.00018959,2]
[352048353,1738900238587,-150.56,0.00018959,2]
[352048354,1738900238596,-150.0,0.00018959,2]
[352048355,1738900238605,-150.0,0.00018959,2]
[352048356,1738900238615,-150.0,0.00018959,2]
[352048357,1738900238624,-150.0,0.00018959,2]
[352048358,1738900238633,-150.0,0.00018959,2]
[352048359,1738900238643,-150.0,0.00018959,2]
[352048360,1738900238652,-150.0,0.00018959,2]
[352048361,1738900238661,-150.0,0.00018959,2]
[352048362,1738900238670,-150.74,0.00018986,2]
[352048363,1738900238680,-74.39980954,0.00018986,2]
[352048364,1738900238695,-802.52019046,0.00018986,2]
[352048365,1738900238705,-1716.07980955,0.00019,7]
[352048366,1738900238716,-8283.92019045,0.00019,7]
[352048367,1738900238726,-250000.0,0.00019,2]
[352048368,1738900238736,-439.5,0.00019009,2]
[352048369,1738900238746,-1097.44,0.00019009,2]
[352048370,1738900238757,-439.61,0.00019009,2]
[352048371,1738900238766,-439.61,0.00019009,2]
[352048372,1738900238776,-437.34,0.00019009,2]
[352048373,1738900238785,-570.75,0.00019009,2]
[352048374,1738900238795,-151.81,0.00019021,2]
[352048375,1738900238805,-1000.0,0.00019033,2]
[352048376,1738900238815,-12904.26001943,0.00019034,2]
[352048377,1738900238824,-2641.56,0.00019041,2]
[352048378,1738900238833,-150.66417334,0.00019085,2]
[352048379,1738900238843,-500.67421052,0.00019099,2]
[352048380,1738900238852,-500.53192226,0.00019099,2]
[352048381,1738900238861,-527.42616887,0.00019099,2]
[352048382,1738900238870,-502.31308448,0.00019099,2]
[352048383,1738900238880,-424.96083067,0.00019099,2]
[352048384,1738900239028,-1000.0,8.851e-05,2]
[352048385,1738900239037,-2122.72056901,0.00016848,2]
[352048386,1738900239048,-745.8701649,0.00016848,2]
[352048387,1738900239064,-32686.11991138,0.00016848,2]
[352048388,1738900239074,-24848.2513054,0.00016848,2]
[352048389,1738900239088,-1300.0,0.00016848,2]
[352048390,1738900239099,-29189.3997722,0.00016848,2]
[352048391,1738900239114,-4941.09052972,0.00016848,2]
[352048463,1738900242903,-1500.0,0.00016848,2]
[352048633,1738900245728,-439.5,0.00016848,2]
[352048683,1738901431863,-160.04,0.00010137,2]
[352048684,1738901431873,-171.74,0.000132,2]
[352048685,1738901431883,-150.0,0.00013825,2]
[352048686,1738901431892,-150.0,0.00013902,2]
[352048687,1738901431901,-480.08,0.00014689,2]
[352048688,1738901432069,-375.44,0.00015116,2]
[352048689,1738901432079,-200.0,0.00015282,2]
[352048690,1738901432089,-196.12,0.00015284,2]
[352048691,1738901432099,-372.88,0.00015396,2]
[352048692,1738901432108,-170.13,0.00015758,2]
[352048693,1738901432118,-783.59675323,0.0001589,4]
[352048694,1738901432127,-414.73,0.00015943,2]
[352048695,1738901432138,-414.73,0.00015947,2]
[352048696,1738901432147,-414.73,0.00015951,2]
[352048697,1738901432157,-414.73,0.00015956,2]
[352048698,1738901432167,-414.73,0.0001596,2]
[352048699,1738901432176,-414.73,0.00015964,2]
[352048700,1738901432185,-390.21211196,0.00015968,2]
[352048701,1738901432197,-24.51788804,0.00015968,2]
[352048702,1738901432210,-414.73,0.00015972,2]
[352048703,1738901432219,-414.73,0.00015976,2]
[352048704,1738901432229,-414.73,0.00015981,2]
[352048705,1738901432238,-294.86376125,0.00015985,2]
[352048706,1738901432249,-119.86623875,0.00015985,2]
[352048707,1738901432258,-414.73,0.00015989,2]
[352048709,1738901432267,-414.73,0.00015993,2]
[352048710,1738901432276,-414.73,0.00015997,2]
[352048711,1738901432285,-329.07381523,0.00016002,2]
[352048712,1738901432297,-85.65618477,0.00016002,2]
[352048713,1738901432307,-414.73,0.00016006,2]
[352048714,1738901432317,-414.73,0.0001601,2]
[352048715,1738901432326,-414.73,0.00016014,2]
[352048716,1738901432336,-414.73,0.00016018,2]
[352048717,1738901432348,-414.73,0.00016023,2]
[352048718,1738901432359,-168.683158,0.00016438,2]
[352048719,1738901432369,-500.91686105,0.00016438,2]
[352048721,1738901432378,-501.61561555,0.00016438,2]
[352048723,1738901432387,-501.05469567,0.00016438,2]
[352048725,1738901432398,-500.52204237,0.00016438,2]
[352048727,1738901432407,-501.23229891,0.00016438,2]
[352048729,1738901432416,-500.0,0.00016438,2]
[352048731,1738901432426,-604.31,0.00016438,2]
[352048733,1738901432435,-500.0,0.00016438,2]
[352048735,1738901432444,-209.28562947,0.00016438,2]
[352048737,1738901432455,-500.0,0.00016438,2]
[352048739,1738901432463,-500.0,0.00016438,2]
[352048741,1738901432473,-500.0,0.00016438,2]
[352048742,1738901432482,-375.3,0.00016508,2]
[352048744,1738901432491,-500.0,0.00016508,2]
[352048745,1738901432500,-500.0,0.00016508,2]
[352048746,1738901432509,-1000.0,0.00016531,2]
[352048747,1738901432519,-23900.0,0.00016532,2]
[352048748,1738901432528,-299.93,0.00016578,2]
[352048749,1738901432537,-1251.14985136,0.00016747,3]
[352048750,1738901432547,-1251.14985137,0.00016748,3]
[352048751,1738901432557,-452.56,0.00016789,30]
[352048752,1738901432567,-372.61,0.00016796,2]
[352048753,1738901432577,-160.04,0.00016813,2]
[352048754,1738901432587,-1203.87915263,0.00016847,5]
[352048755,1738901432596,-199.03306788,0.00016847,5]
[352048756,1738901432606,-567.8,0.00016847,2]
[352048757,1738901432615,-120.60111653,0.00016847,2]
[352048758,1738901432627,-379.39888347,0.00016847,2]
[352048759,1738901432636,-304.85302891,0.00016847,2]
[352048760,1738901432646,-279.31,0.00016847,2]
[352048761,1738901432655,-371.18,0.00016848,2]
[352048762,1738901432665,-368.49,0.00016848,2]
[352048763,1738901432675,-204.65936667,0.00016848,2]
[352048764,1738901432684,-1499.153,0.00016948,2]
[352048765,1738901432693,-152.327,0.00016948,2]
[352048766,1738901432704,-480.08,0.00016952,2]
[352048767,1738901432713,-567.8,0.00016984,2]
[352048768,1738901432723,-168.683158,0.0001712,2]
[352048769,1738901432732,-424.91914937,0.00017121,2]
[352048770,1738901432747,-142.88085063,0.00017121,2]
[352048771,1738901432757,-196.12,0.00017195,2]
[352048772,1738901432766,-567.8,0.00017258,2]
[352048773,1738901432776,-15.73914237,0.00017383,2]
[352048774,1738901432787,-3893.48260161,0.00017383,2]
[352048775,1738901432796,-5741.42223788,0.00017388,2]
[352048776,1738901432809,-793.07877249,0.00017388,2]
[352048777,1738901432821,-334.60004339,0.00017388,2]
[352048778,1738901432833,-3540.09114635,0.00017388,2]
[352048779,1738901432842,-567.8,0.00017395,2]
[352048780,1738901432852,-36961.06115953,0.00017403,2]
[352048781,1738901432864,-29999.92,0.00017403,2]
[352048782,1738901432875,-6983.9256312,0.00017403,2]
[352048783,1738901432887,-659.83463373,0.00017403,2]
[352048784,1738901432899,-53758.5229236,0.00017403,2]
[352048785,1738901432909,-3909.22174398,0.00017409,2]
[352048786,1738901432918,-926.4516536,0.00017434,2]
[352048787,1738901432928,-128363.26434806,0.00017441,2]
[352048788,1738901432939,-3909.22174398,0.00017443,2]
[352048789,1738901432948,-926.4516536,0.00017448,2]
[352048790,1738901432959,-128363.26434806,0.00017449,2]
[352048791,1738901432968,-926.4516536,0.0001747,2]
[352048792,1738901432978,-926.4516536,0.00017474,2]
[352048793,1738901432987,-3909.22174398,0.00017477,2]
[352048794,1738901432997,-10409.19220011,0.00017478,2]
[352048795,1738901433007,-128363.26434806,0.00017479,2]
[352048796,1738901433017,-10409.19220011,0.00017481,2]
[352048797,1738901433027,-10409.19220011,0.00017488,2]
[352048798,1738901433038,-200.0,0.00017496,2]
[352048799,1738901433047,-567.8,0.00017532,2]
[352048800,1738901433057,-500.0,0.00017604,2]
[352048801,1738901433066,-567.8,0.00017669,2]
[352048802,1738901433076,-567.8,0.00017806,2]
[352048803,1738901433086,-1275.781,0.00017855,2]
[352048804,1738901433096,-2023.0,0.00017855,2]
[352048805,1738901433105,-150.0,0.00017855,2]
[352048806,1738901433114,-638.0,0.00017855,2]
[352048807,1738901433125,-568.0,0.00017855,2]
[352048808,1738901433135,-1867.0,0.00017855,2]
[352048809,1738901433145,-907.0,0.00017855,2]
[352048810,1738901433156,-1263.0,0.00017855,2]
[352048811,1738901433166,-2954.0,0.00017855,2]
[352048812,1738901433175,-783.0,0.00017855,2]
[352048813,1738901433185,-539.0,0.00017855,2]
[352048814,1738901433194,-3912.0,0.00017855,2]
[352048815,1738901433204,-568.394,0.00017855,2]
[352048816,1738901433214,-194.251,0.00017855,2]
[352048817,1738901433223,-567.8,0.00017943,2]
[352048818,1738901433232,-567.8,0.0001808,2]
[352048819,1738901433241,-497.14,0.00018082,2]
[352048820,1738901433250,-567.8,0.00018216,2]
[352048821,1738901433259,-200.0,0.00018223,2]
[352048822,1738901433269,-300.0,0.000183,6]
[352048823,1738901433278,-567.8,0.00018353,2]
[352048824,1738901433288,-597.45533555,0.000184,2]
[352048825,1738901433297,-700.0,0.000184,6]
[352048826,1738901433307,-439.5,0.00018438,2]
[352048827,1738901433317,-567.8,0.0001849,2]
[352048828,1738901433327,-1100.0,0.000185,6]
[352048829,1738901433337,-1000.0,0.00018598,2]
[352048830,1738901433348,-154.71,0.000186,2]
[352048831,1738901433359,-1500.0,0.000186,6]
[352048832,1738901433368,-567.8,0.00018627,2]
[352048833,1738901433378,-1000.0,0.00018635,2]
[352048834,1738901433387,-1000.0,0.00018635,2]
[352048835,1738901433398,-1000.0,0.00018635,2]
[352048836,1738901433408,-1000.0,0.00018635,2]
[352048837,1738901433418,-1000.0,0.00018635,2]
[352048838,1738901433431,-1000.0,0.00018635,2]
[352048839,1738901433441,-1000.0,0.00018635,2]
[352048840,1738901433451,-1000.0,0.00018635,2]
[352048841,1738901433463,-1000.0,0.00018635,2]
[352048842,1738901433473,-1014.99731122,0.00018635,2]
[352048843,1738901433482,-500.0,0.000187,2]
[352048844,1738901433491,-500.0,0.000187,2]
[352048845,1738901433500,-1900.0,0.000187,6]
[352048846,1738901433510,-497.14,0.00018751,2]
[352048847,1738901433520,-567.8,0.00018764,2]
[352048848,1738901433529,-300.0,0.000188,6]
[352048849,1738901433539,-300.0,0.000189,6]
[352048850,1738901433549,-567.8,0.00018901,2]
[352048851,1738901433559,-18013.8450677,0.0001891,2]
[352048852,1738901433568,-300.0,0.00019009,2]
[352048853,1738901433578,-150.0,0.00019032,2]
[352048854,1738901433587,-150.0,0.00019035,2]
[352048855,1738901433596,-567.8,0.00019038,2]
[352048856,1738901433605,-150.0,0.00019059,2]
[352048857,1738901433615,-200.0,0.00019099,2]
[352048858,1738901433625,-4000.0,0.00019099,2]
[352048859,1738901433636,-196.12,0.00019105,2]
[352048860,1738901433647,-2000.0,0.00019144,2]
[352048861,1738901433656,-500.0,0.00019144,2]
[352048862,1738901433666,-200.0,0.00019144,2]
[352048863,1738901433676,-567.8,0.00019175,2]
[352048864,1738901433685,-500.0,0.00019177,2]
[352048865,1738901433695,-500.0,0.00019177,2]
[352048866,1738901433705,-500.0,0.00019177,2]
[352048867,1738901433714,-500.0,0.00019177,2]
[352048868,1738901433724,-511.5,0.00019177,2]
[352048869,1738901433734,-271.93807833,0.00019177,2]
[352048870,1738901433743,-500.0,0.00019177,2]
[352048871,1738901433753,-500.0,0.00019178,2]
[352048872,1738901433763,-500.0,0.00019178,2]
[352048873,1738901433775,-500.0,0.00019178,2]
[352048874,1738901433785,-500.0,0.00019178,2]
[352048875,1738901433794,-500.0,0.00019178,2]
[352048876,1738901433804,-500.0,0.00019178,2]
[352048877,1738901433814,-510.0,0.00019178,2]
[352048878,1738901433824,-508.0,0.00019178,2]
[352048879,1738901433833,-500.0,0.00019178,2]
[352048880,1738901433844,-500.0,0.00019178,2]
[352048881,1738901433853,-500.0,0.00019178,2]
[352048882,1738901433863,-500.0,0.00019178,2]
[352048883,1738901433873,-500.0,0.00019178,2]
[352048884,1738901433883,-500.0,0.00019178,2]
[352048885,1738901433893,-500.0,0.00019178,2]
[352048886,1738901433902,-500.0,0.00019178,2]
[352048887,1738901433912,-500.0,0.00019178,2]
[352048888,1738901433922,-500.0,0.00019178,2]
[352048889,1738901433931,-500.0,0.00019178,2]
[352048890,1738901433940,-500.0,0.00019178,2]
[352048891,1738901433950,-500.0,0.00019178,2]
[352048892,1738901433961,-500.0,0.00019178,2]
[352048893,1738901433971,-500.0,0.00019178,2]
[352048894,1738901433980,-500.0,0.00019178,2]
[352048895,1738901433989,-500.0,0.00019178,2]
[352048896,1738901433998,-500.0,0.00019178,2]
[352048897,1738901434007,-500.0,0.00019178,2]
[352048898,1738901434016,-500.0,0.00019178,2]
[352048899,1738901434026,-500.0,0.00019178,2]
[352048900,1738901434035,-500.0,0.00019178,2]
[352048901,1738901434045,-500.0,0.00019178,2]
[352048902,1738901434055,-500.0,0.00019178,2]
[352048903,1738901434064,-500.0,0.00019178,2]
[352048904,1738901434074,-500.0,0.00019178,2]
[352048905,1738901434084,-500.0,0.00019178,2]
[352048906,1738901434093,-500.0,0.00019178,2]
[352048907,1738901434103,-500.0,0.00019178,2]
[352048908,1738901434112,-500.0,0.00019178,2]
[352048909,1738901434121,-500.0,0.00019178,2]
[352048910,1738901434131,-500.0,0.00019178,2]